{"text_format":"1","workbook":"xlsx","n_sheets":1,"sheets":["Prikaz pojedinačnih troškova"],"not_rendered":{"charts":0,"images":1,"macros":0,"external_links":0,"defined_names":0,"comments":0,"pivot_tables":0},"unopened":[],"bounds":{"document_bytes":16777216,"sheet_cells":100000,"rows_first":2000,"rows_last":500,"rows_between":2000,"halvings":0,"cell_chars":16384,"cell_head_chars":4096},"cells_cut":0,"cells_raw":0,"read":"whole","date_system":"1900"}

{"sheet":"Prikaz pojedinačnih troškova","index":0,"n_rows":259,"n_cols":6,"rows_kept":259,"cut":false,"hidden":false,"merged":[[232,0,232,2],[241,0,241,4],[212,0,212,2],[221,0,221,4],[202,0,202,2],[211,0,211,4],[222,0,222,2],[231,0,231,4],[113,0,113,4],[67,0,67,2],[73,0,73,4],[192,0,192,2],[201,0,201,4],[100,0,100,2],[106,0,106,4],[93,0,93,2],[99,0,99,4],[107,0,107,2],[167,0,167,4],[168,0,168,2],[153,0,153,4],[154,0,154,2],[160,0,160,4],[253,0,253,4],[161,0,161,2],[139,0,139,4],[146,0,146,4],[46,0,46,2],[52,0,52,4],[53,0,53,2],[80,0,80,4],[66,0,66,4],[59,0,59,4],[60,0,60,2],[81,0,81,4],[126,0,126,2],[132,0,132,4],[133,0,133,2],[140,0,140,2],[258,0,258,3],[174,0,174,4],[86,0,86,2],[252,0,252,4],[182,0,182,2],[191,0,191,4],[242,0,242,2],[251,0,251,4],[121,0,121,4],[92,0,92,4],[114,0,114,2],[120,0,120,4],[255,4,255,5],[258,4,258,5],[175,0,175,4],[255,0,255,3],[20,0,20,5],[41,0,41,4],[27,0,27,2],[33,0,33,4],[34,0,34,2],[40,0,40,4],[0,0,0,5],[84,0,84,5],[124,0,124,5],[180,0,180,5],[178,0,179,5],[23,0,24,5],[25,0,25,5],[44,0,44,5],[2,0,2,5],[5,0,5,5],[8,0,8,5],[9,0,9,5],[10,0,10,5],[13,0,13,5],[14,0,14,5],[17,0,17,5]]}
["REPUBLIKA HRVATSKA\nMINISTARSTVO ZNANOSTI, OBRAZOVANJA I MLADIH"]
[]
["Prilog 1. \nPoziv za prijavu projekata udruga usmjerenih mladima za 2023. godinu"]
[]
[]
["Prikaz pojedinačnih troškova potrebno je dostaviti uz Obrazac financijskog izvještaja (polugodišnji i završni).\nMolimo da ovaj Prilog popunite isključivo računalom. \nBroj stranica ovoga Izvještaja nije ograničen.\nPolugodišnji/Završni izvještaj"]
[]
[]
["Naziv udruge:"]
[]
[]
[]
[]
["Naziv projekta:"]
[]
[]
[]
["PRIKAZ POJEDINAČNIH TROŠKOVA\nprovedenih aktivnosti projekata udruga usmjerenih mladima za 2023. godinu u razdoblju od _______. do _______. godine, plaćenih iz sredstava Ministarstva znanosti, obrazovanja i mladih\n"]
[]
[]
["Napomene:\n1. Molimo da u Tablicu upišete sve troškove provedenih aktivnosti koji su izravno vezani za provedbu projekta \n2. Svaki nastali trošak potrebno je pravdati skeniranim izvornikom pisanog dokaza (račun, obračun plaće, ugovor, putni nalog i sl.), kao i skeniranim izvodima iz banke ili FINA-e, odnosno isplatnice i blagajničkog izvještaja kao dokaz bezgotovinskog, odnosno gotovinskog plaćanja. Trošak mora biti u skladu s odobrenom specifikacijom, odnosno ukoliko Središnji državni ured za demografiju i mlade ne pokriva cijeli iznos, na pisanom dokazu troška označava se udio Središnjeg državnog ureda u tom trošku.\n3. Svu skeniranu dokumentaciju potrebno je pohraniti na USB priključku ili CD/DVD-u pod rednim brojem i naslovom označenom u obrascu prikaza pojedinačnih troškova. \n4. Ako udruga ne dostavi sve potrebne dokaze plaćanja, napravljeni trošak neće biti priznat."]
[]
[]
["A) IZRAVNI TROŠKOVI (specificirati troškove koji su izravno povezani s projektom)"]
[]
["1. Ljudski resursi (specificirati troškove plaća i naknada za zaposlene te vrstu naknade drugog dohotka) \nNAPOMENA: navesti imena i prezimena osoba kojima će se isplatiti plaća, razdoblje za koje se plaća isplaćuje i naziv radnog mjesta te imena i prezimena osoba kojima će se isplatiti naknada i za koje poslove"]
["Redni broj","Naziv i broj dokumenta ","Datum plaćanja","Broj izvatka ili blagajničkog izvještaja","Opis troška","Iznos u €"]
[null,null,null,null,"1.1. Plaće"]
["1."]
["2."]
["3."]
["4."]
["5."]
["Ukupno",null,null,null,null,{"$f":"SUM(F29:F33)","v":0}]
[null,null,null,null,"1.2. Naknade"]
["1."]
["2."]
["3."]
["4."]
["5."]
["Ukupno",null,null,null,null,{"$f":"SUM(F36:F40)","v":0}]
["1. Ukupno ljudski resursi",null,null,null,null,{"$f":"SUM(F34,F41)","v":0}]
[]
[]
["2. Putovanja (specificirati putne troškove, dnevnice i troškove smještaja za potrebe obavljanja projektnih aktivnosti)"]
["Redni broj","Naziv i broj dokumenta ","Datum plaćanja","Broj izvatka ili blagajničkog izvještaja","Opis troška","Iznos u €"]
[null,null,null,null,"2.1."]
["1."]
["2."]
["3."]
["4."]
["5."]
["Ukupno",null,null,null,null,{"$f":"SUM(F48:F52)","v":0}]
[null,null,null,null,"2.2. "]
["1."]
["2."]
["3."]
["4."]
["5."]
["Ukupno",null,null,null,null,{"$f":"SUM(F55:F59)","v":0}]
[null,null,null,null,"2.3."]
["1."]
["2."]
["3."]
["4."]
["5."]
["Ukupno",null,null,null,null,{"$f":"SUM(F62:F66)","v":0}]
[null,null,null,null,"2.4."]
["1."]
["2."]
["3."]
["4."]
["5."]
["Ukupno",null,null,null,null,{"$f":"SUM(F69:F73)","v":0}]
[null,null,null,null,"2.5."]
["1."]
["2."]
["3."]
["4."]
["5."]
["Ukupno",null,null,null,null,{"$f":"SUM(F76:F80)","v":0}]
["2. Ukupno putovanja",null,null,null,null,{"$f":"SUM(F53,F60,F67,F74,F81)","v":0}]
[]
[]
["3. Oprema i roba "]
["Redni broj","Naziv i broj dokumenta ","Datum plaćanja","Broj izvatka ili blagajničkog izvještaja","Opis troška","Iznos u €"]
[null,null,null,null,"3.1."]
["1."]
["2."]
["3."]
["4."]
["5."]
["Ukupno",null,null,null,null,{"$f":"SUM(F88:F92)","v":0}]
[null,null,null,null,"3.2."]
["1."]
["2."]
["3."]
["4."]
["5."]
["Ukupno",null,null,null,null,{"$f":"SUM(F95:F99)","v":0}]
[null,null,null,null,"3.3."]
["1."]
["2."]
["3."]
["4."]
["5."]
["Ukupno",null,null,null,null,{"$f":"SUM(F102:F106)","v":0}]
[null,null,null,null,"3.4."]
["1."]
["2."]
["3."]
["4."]
["5."]
["Ukupno",null,null,null,null,{"$f":"SUM(F109:F113)","v":0}]
[null,null,null,null,"3.5."]
["1."]
["2."]
["3."]
["4."]
["5."]
["Ukupno",null,null,null,null,{"$f":"SUM(F116:F120)","v":0}]
["3. Ukupno oprema i roba",null,null,null,null,{"$f":"SUM(F93,F100,F107,F114,F121)","v":0}]
[]
[]
["4. OSTALI TROŠKOVI, USLUGE (kampanje, edukacije za ključne korisnike, troškovi praćenja i vrednovanja provedbe projekta, drugi troškovi neophodni i neposredno vezani i nužni za provedbu projektnih aktivnosti i sl.)"]
["Redni broj","Naziv i broj dokumenta ","Datum plaćanja","Broj izvatka ili blagajničkog izvještaja","Opis troška","Iznos u €"]
[null,null,null,null,"4.1."]
["1."]
["2."]
["3."]
["4."]
["5."]
["Ukupno",null,null,null,null,{"$f":"SUM(F128:F132)","v":0}]
[null,null,null,null,"4.2."]
["1."]
["2."]
["3."]
["4."]
["5."]
["Ukupno",null,null,null,null,{"$f":"SUM(F135:F139)","v":0}]
[null,null,null,null,"4.3."]
["1."]
["2."]
["3."]
["4."]
["5."]
["Ukupno",null,null,null,null,{"$f":"SUM(F142:F146)","v":0}]
[null,null,null,null,"4.4."]
["1."]
["2."]
["3."]
["4."]
["5."]
["Ukupno",null,null,null,null,{"$f":"SUM(F149:F153)","v":0}]
[null,null,null,null,"4.5."]
["1."]
["2."]
["3."]
["4."]
["5."]
["Ukupno",null,null,null,null,{"$f":"SUM(F156:F160)","v":0}]
[null,null,null,null,"4.6."]
["1."]
["2."]
["3."]
["4."]
["5."]
["Ukupno",null,null,null,null,{"$f":"SUM(F163:F167)","v":0}]
[null,null,null,null,"4.7."]
["1."]
["2."]
["3."]
["4."]
["5."]
["Ukupno",null,null,null,null,{"$f":"SUM(F170:F174)","v":0}]
["4. Ukupno ostali troškovi i usluge",null,null,null,null,{"$f":"SUM(F133,F140,F147,F154,F161,F168,F175)","v":0}]
[]
[]
["B) NEIZRAVNI TROŠKOVI (specificirati troškove koji su neizravno povezani s provedbom projekta) – udio do najviše 20% vrijednosti proračuna projekta"]
[]
["5. Troškovi obavljanja osnovne djelatnosti (specificirati, npr. režije – plin, struja, voda, najam prostora, knjigovodstveni servis)"]
["Redni broj","Naziv i broj dokumenta ","Datum plaćanja","Broj izvatka ili blagajničkog izvještaja","Opis troška","Iznos u €"]
[null,null,null,null,"5.1."]
["1."]
["2."]
["3."]
["4."]
["5."]
["6."]
["7."]
["8."]
["Ukupno",null,null,null,null,{"$f":"SUM(F184:F191)","v":0}]
[null,null,null,null,"5.2."]
["1."]
["2."]
["3."]
["4."]
["5."]
["6."]
["7."]
["8."]
["Ukupno",null,null,null,null,{"$f":"SUM(F194:F201)","v":0}]
[null,null,null,null,"5.3."]
["1."]
["2."]
["3."]
["4."]
["5."]
["6."]
["7."]
["8."]
["Ukupno",null,null,null,null,{"$f":"SUM(F204:F211)","v":0}]
[null,null,null,null,"5.4."]
["1."]
["2."]
["3."]
["4."]
["5."]
["6."]
["7."]
["8."]
["Ukupno",null,null,null,null,{"$f":"SUM(F214:F221)","v":0}]
[null,null,null,null,"5.5."]
["1."]
["2."]
["3."]
["4."]
["5."]
["6."]
["7."]
["8."]
["Ukupno",null,null,null,null,{"$f":"SUM(F224:F231)","v":0}]
[null,null,null,null,"5.6."]
["1."]
["2."]
["3."]
["4."]
["5."]
["6."]
["7."]
["8."]
["Ukupno",null,null,null,null,{"$f":"SUM(F234:F241)","v":0}]
[null,null,null,null,"5.7."]
["1."]
["2."]
["3."]
["4."]
["5."]
["6."]
["7."]
["8."]
["Ukupno",null,null,null,null,{"$f":"SUM(F244:F251)","v":0}]
["5. Ukupno troškovi obavljanja osnovne djelatnosti",null,null,null,null,{"$f":"SUM(F192,F202,F212,F222,F232,F242,F252)","v":0}]
["SVEUKUPNO:",null,null,null,null,{"$f":"SUM(F253,F176,F122,F82,F42)","v":0}]
[]
["Ime i prezime, te potpis odgovorne osobe i pečat"]
[]
[]
["Mjesto i datum sastavljanja izvještaja:"]